Cogmind - Beta 9.6 @@@ ROGUE MODE // 2020.06.05 @ 00:41:40 Player: Ahrs Ahrtis Result: Destroyed by D-53 Grenadier with Mini Grenade Launcher Performance ------------- Evolutions (1) 500 Regions Visited (4) 800 Robots Destroyed (18) 90 Value Destroyed (385) 385 Prototype IDs (0) 0 Alien Tech Used (0) 0 Bonus (0) 0 TOTAL SCORE: 1775 Bonus ------- None Cogmind --------- Core Integrity 0/400 Matter 300/300 Energy 99/100 System Corruption 0% Temperature Cool (0) Movement Core (100) Ox1 Location -9/Mines Parts ------- > --- POWER (1) -------- (None) > --- PROPULSION (3) --- (None) > --- UTILITY (3) ------ Heat Sink Small Storage Unit > --- WEAPON (2) ------- (None) > --- INVENTORY (6) ---- Light Ion Engine Light Ion Engine Heat Sink Beam Rifle Peak State ------------ > --- POWER ------------ Light Ion Engine > --- PROPULSION ------- Aluminum Leg Aluminum Leg Aluminum Leg > --- UTILITY ---------- Small Storage Unit ECM Suite Medium Armor Plating > --- WEAPON ----------- Welding Torch Hammer > --- INVENTORY -------- Light Ion Engine Aluminum Leg Light Assault Rifle Light Assault Rifle Welding Torch [Rating: 10] Favorites ----------- Power Light Ion Engine Engine Light Ion Engine Propulsion Aluminum Leg Leg Aluminum Leg Flight Unit Flight Unit Utility Small Storage Unit Device ECM Suite Storage Small Storage Unit Protection Medium Armor Plating Weapon Light Assault Rifle Ballistic Gun Light Assault Rifle Special Weapon Welding Torch Impact Weapon Hammer Build | -11 -10 -10 -9 -9 ------- Run | Scr Mat Min Mat Min Slots Evolved 2 | . . . 2 . Power . | . . . . . Propulsion 1 | . . . 1 . Utility 1 | . . . 1 . Weapon . | . . . . . Parts Attached 33 | 6 1 3 23 . Power 5 | 1 . 1 3 . Engine 5 | 1 . 1 3 . Core . | . . . . . Reactor . | . . . . . Propulsion 8 | 2 . . 6 . Treads . | . . . . . Leg 5 | 2 . . 3 . Wheel . | . . . . . Hover . | . . . . . Flight 3 | . . . 3 . Utility 8 | 1 1 1 5 . Device 3 | . . 1 2 . Storage 3 | 1 1 . 1 . Processor . | . . . . . Hackware . | . . . . . Protection 2 | . . . 2 . Artifact . | . . . . . Weapon 12 | 2 . 1 9 . Energy Gun . | . . . . . Energy Cannon . | . . . . . Ballistic Gun 9 | 2 . 1 6 . Ballistic Cannon . | . . . . . Launcher . | . . . . . Special Weapon 2 | . . . 2 . Impact Weapon 1 | . . . 1 . Slashing Weapon . | . . . . . Piercing Weapon . | . . . . . Special Melee Weapon . | . . . . . Unidentified Prototypes . | . . . . . Parts Lost 20 | . . 2 12 6 Power 3 | . . 1 1 1 Propulsion 7 | . . . 4 3 Utility 3 | . . . 3 . Weapon 7 | . . 1 4 2 Highest Loss Streak 7 | . . 2 7 6 Average Slot Usage (%) 93 | . 97 99 88 83 Engine 12 | . 14 13 10 11 Leg 24 | . 28 28 21 . Flight 4 | . . . 7 28 Device 6 | . . 5 8 11 Storage 18 | . 25 22 15 11 Protection 1 | . . . 3 . Ballistic Gun 19 | . 28 27 10 22 Special Weapon 3 | . . . 7 . Impact Weapon 1 | . . . 2 . Naked Turns . | . . . . . Heaviest Build 20 | 9 10 10 20 12 Greatest Support 30 | 20 20 20 30 12 Greatest Overweight (x) 2 | . . . 2 2 Average Overweight (x) . | . . . . . Largest Inventory Capacity 6 | 6 6 6 6 6 Average Capacity 5 | 5 6 6 6 6 Most Carried 6 | 4 2 6 6 4 Average Carried 4 | 1 1 4 4 4 Final Capacity 6 | 6 6 6 6 6 Final Carried 5 | 1 2 5 4 4 Class Distribution -------------------- 80% | Mutant 19% | Scavenger-Mutant Dominant Class ---------------- Mutant | -10/Materials Mutant | -10/Mines Mutant | -9/Materials Scavenger-Mutant | -9/Mines Resources | -11 -10 -10 -9 -9 ----------- Run | Scr Mat Min Mat Min Matter Collected 571 | 204 . 141 201 25 Remotely . | . . . . . Salvage Created 525 | . . 142 357 26 Parts 29 | . . 9 18 2 Haulers Intercepted . | . . . . . Recyclers Shooed . | . . . . . Parts Field Recycled . | . . . . . Retrieved Matter . | . . . . . Parts Self-Destructed . | . . . . . Prevented . | . . . . . Kills | -11 -10 -10 -9 -9 ------- Run | Scr Mat Min Mat Min Combat Hostiles Destroyed 17 | . . 6 11 . Melee 3 | . . . 3 . Guns 12 | . . 6 6 . Cannons 1 | . . . 1 . Classes Destroyed 4 | . . 2 1 1 Worker 1 | . . . . 1 Swarmer 10 | . . 4 6 . Grunt 4 | . . 2 2 . Sentry 3 | . . . 3 . Best Kill Streak 4 | . . 2 4 1 Combat Bots Only 4 | . . 2 4 . Max Kills in Single Turn 1 | . . 1 1 1 Gunslinging . | . . . . . Exploded . | . . . . . Melee 1 | . . . 1 . Uniques/NPCs Destroyed . | . . . . . Combat | -11 -10 -10 -9 -9 -------- Run | Scr Mat Min Mat Min Damage Taken 1922 | . . 408 1046 468 Core 475 | . . 67 219 189 Absorbed by Shields . | . . . . . Core Remaining (%) 86 | 100 . 73 . . Volleys Fired 63 | . . 28 33 2 Largest 2 | . . 2 2 2 Hottest 43 | . . 40 40 43 Shots Fired 116 | . . 55 57 4 Gun 94 | . . 55 35 4 Cannon . | . . . . . Launcher . | . . . . . Special 22 | . . . 22 . Kinetic 94 | . . 55 35 4 Thermal 22 | . . . 22 . Explosive . | . . . . . Electromagnetic . | . . . . . Robot Hit Streak 7 | . . 6 7 4 Robot Miss Streak 4 | . . 4 4 1 Penetration Max . | . . . . . Secondary Targets 1 | . . 1 . . Max Gunslinging Chain 1 | . . 1 . . Shots Hit Robots 86 | . . 30 53 3 Core Hits 33 | . . 11 20 2 Critical Hits . | . . . . . Critical Kills . | . . . . . Critical Parts Destroyed . | . . . . . Melee Attacks 26 | . . . 26 . Impact 26 | . . . 26 . Slashing . | . . . . . Piercing . | . . . . . Sneak Attacks . | . . . . . Combat Hostiles . | . . . . . Follow-up Attacks . | . . . . . Damage Inflicted 748 | . . 197 532 19 Guns 386 | . . 197 170 19 Cannons . | . . . . . Explosions . | . . . . . Melee 324 | . . . 324 . Ramming 2 | . . . 2 . Kinetic 386 | . . 197 170 19 Thermal 36 | . . . 36 . Explosive . | . . . . . Electromagnetic . | . . . . . Impact 324 | . . . 324 . Slashing . | . . . . . Piercing . | . . . . . Highest Corruption . | . . . . . Average Corruption . | . . . . . Corruption Purged . | . . . . . Overload Shots . | . . . . . Overflow Damage 5 | . . . 5 . Projectiles . | . . . . . Explosions . | . . . . . Melee 5 | . . . 5 . Knockbacks 1 | . . . 1 . Impact 1 | . . . 1 . Kinetic . | . . . . . Secondary . | . . . . . Self-Inflicted Damage 1 | . . . 1 . Shots . | . . . . . Rammed 2 | . . . 2 . Targets Rammed 2 | . . . 2 . Kicked . | . . . . . Crushed . | . . . . . Highest Temperature 30 | . . 22 30 . Average Temperature 9 | . . 10 8 . Received Heat Transfer 408 | . . 93 315 . Siege Activations . | . . . . . Robots Corrupted . | . . . . . Combat Hostiles . | . . . . . Parts Fried 1 | . . . 1 . Impact Corruptions 2 | . . . 2 . Robots Melted . | . . . . . Combat Hostiles . | . . . . . Parts Melted 2 | . . . 2 . Heat Transferred 250 | . . . 250 . Parts Sabotaged . | . . . . . Parts Stolen . | . . . . . Parts Stripped . | . . . . . Power Chain Reactions . | . . . . . Missiles Intercepted . | . . . . . Alert | -11 -10 -10 -9 -9 ------- Run | Scr Mat Min Mat Min Peak Influence 129 | . 15 85 129 50 Average Influence 43 | . 3 39 59 40 Maximum Alert Level . | . . . . . Low Security (%) 100 | 100 100 100 100 100 Level 1 . | . . . . . Level 2 . | . . . . . Level 3 . | . . . . . Level 4 . | . . . . . Level 5 . | . . . . . High Security . | . . . . . Max Security . | . . . . . Squads Dispatched 2 | . 1 . 1 . Investigation . | . . . . . Extermination . | . . . . . Reinforcement 2 | . 1 . 1 . Assault . | . . . . . Garrison . | . . . . . Intercept . | . . . . . Construction Impeded . | . . . . . Haulers Reinforced . | . . . . . Stealth | -11 -10 -10 -9 -9 --------- Run | Scr Mat Min Mat Min Distress Signals . | . . . . . Communications Jammed . | . . . . . Distress Signals . | . . . . . Times Spotted 35 | . 1 9 23 2 Peak Tracking Total 6 | . 1 3 6 2 Tactical Retreats 11 | . . 2 9 . Traps | -11 -10 -10 -9 -9 ------- Run | Scr Mat Min Mat Min Traps Triggered 1 | . . . 1 . Indirectly . | . . . . . Trap Hack Attempts . | . . . . . Triggered . | . . . . . Disarmed . | . . . . . Reprogrammed . | . . . . . Reused . | . . . . . Traps Extracted . | . . . . . Installed . | . . . . . Triggered . | . . . . . Machines | -11 -10 -10 -9 -9 ---------- Run | Scr Mat Min Mat Min Machines Disabled . | . . . . . Max in Single Turn . | . . . . . Machines Sabotaged . | . . . . . Garrisons Compromised . | . . . . . Overloaded Fab Kills . | . . . . . Fab Network Shutdowns . | . . . . . Hacking | -11 -10 -10 -9 -9 --------- Run | Scr Mat Min Mat Min Machines Accessed 2 | . . . 2 . Terminals 1 | . . . 1 . Fabricators . | . . . . . Repair Stations . | . . . . . Recycling Units . | . . . . . Scanalyzers 1 | . . . 1 . Garrison Access . | . . . . . Total Hacks 4 | . . . 4 . Successful 4 | . . . 4 . Failed . | . . . . . Catastrophic . | . . . . . Database Lockouts . | . . . . . Manual . | . . . . . Terminals 2 | . . . 2 . Fabricators . | . . . . . Repair Stations . | . . . . . Recycling Units . | . . . . . Scanalyzers 2 | . . . 2 . Garrison Access . | . . . . . Terminal Hacks 2 | . . . 2 . Locate Traps 1 | . . . 1 . Zone Layout 1 | . . . 1 . Fabricator Hacks . | . . . . . Repair Station Hacks . | . . . . . Recycling Unit Hacks . | . . . . . Scanalyzer 2 | . . . 2 . Insert Component 1 | . . . 1 . Analyze 1 | . . . 1 . Garrison Access Hacks . | . . . . . Unauthorized Hacks . | . . . . . Terminals . | . . . . . Fabricators . | . . . . . Repair Stations . | . . . . . Recycling Units . | . . . . . Scanalyzers . | . . . . . Garrison Access . | . . . . . Data Cores Recovered . | . . . . . Used . | . . . . . Hacking Detections . | . . . . . Full Trace Events . | . . . . . Feedback Events . | . . . . . Feedback Blocked . | . . . . . Robot Schematics Acquired . | . . . . . Robots Built . | . . . . . Matter . | . . . . . Time . | . . . . . Total Robot Build Rating . | . . . . . Part Schematics Acquired 1 | . . . 1 . Parts Built . | . . . . . Matter . | . . . . . Time . | . . . . . Total Part Build Rating . | . . . . . Parts Repaired . | . . . . . Time . | . . . . . Parts Recycled . | . . . . . Recycled Matter . | . . . . . Retrieved Matter . | . . . . . Retrieved Components . | . . . . . Parts Scanalyzed 1 | . . . 1 . Part Schematics Acquired 1 | . . . 1 . Parts Damaged . | . . . . . Bothacking | -11 -10 -10 -9 -9 ------------ Run | Scr Mat Min Mat Min Used RIF Installer . | . . . . . Robots Hacked . | . . . . . Non-combat . | . . . . . Combat . | . . . . . Robot Hacks Applied . | . . . . . Relay Couplers Released . | . . . . . Robots Rewired . | . . . . . Allies Hacked . | . . . . . Hacks Repelled . | . . . . . Allies | -11 -10 -10 -9 -9 -------- Run | Scr Mat Min Mat Min Total Allies . | . . . . . Largest Group . | . . . . . Highest-Rated Group . | . . . . . Highest-Rated Ally . | . . . . . Total Orders . | . . . . . Ally Attacks . | . . . . . Total Damage . | . . . . . Kills . | . . . . . Allies Corrupted . | . . . . . Allies Melted . | . . . . . Intel | -11 -10 -10 -9 -9 ------- Run | Scr Mat Min Mat Min Robot Analysis Total . | . . . . . Derelict Logs Recovered 1 | . . 1 . . Drone Launches . | . . . . . Drone Recoveries . | . . . . . Exploration | -11 -10 -10 -9 -9 ------------- Run | Scr Mat Min Mat Min Turns Passed 1765 | 108 98 752 754 53 Spaces Moved 1337 | 90 79 557 522 89 Core 41 | 27 . . 11 3 Treads . | . . . . . Legs 955 | 63 79 557 256 . Wheels . | . . . . . Hover . | . . . . . Flight 341 | . . . 255 86 Fastest Speed 34 | 50 120 120 34 34 Average Speed 99 | 99 120 120 85 39 Slowest Speed 200 | 120 120 120 200 200 Overloaded Moves . | . . . . . Propulsion Burnouts . | . . . . . Robots Hopped 1 | . . . 1 . Cave-ins Triggered . | . . . . . Exploration Rate (%) 32 | 4 18 91 25 25 Regions Visited 4 Branch Regions 2 Pre-discovered Areas 1 | . . 1 . . Known Exits Taken . | . . . . . Unknown Exits Taken 4 | 1 1 1 1 . Scrap Searched 2 | . . 1 . 1 Spaces Dug . | . . . . . Terrain Destroyed . | . . . . . Melee . | . . . . . Projectile . | . . . . . AOE . | . . . . . Actions | -11 -10 -10 -9 -9 --------- Run | Scr Mat Min Mat Min Total 1624 | 109 82 596 734 103 Wait 127 | 7 1 2 105 12 Move 1331 | 89 78 556 519 89 Hop 1 | . . . 1 . Pick Up 33 | 7 2 6 18 . Fast Attach . | . . . . . Attach 24 | 6 1 2 15 . Detach 1 | . . . 1 . Swap 9 | . . 1 8 . Drop 7 | . . 1 6 . Fire 63 | . . 28 33 2 Melee 26 | . . . 26 . Ram . | . . . . . Kick 2 | . . . 2 . Crush . | . . . . . Escape Stasis . | . . . . . Rewire . | . . . . . Trap . | . . . . . Miscellaneous . | . . . . . Route ------- -11/Scrapyard -10/Materials -10/Mines (discovered 2 exits: *Mat x2) -9/Materials (discovered 2 exits: Mat / [*Min]) -9/Mines History --------- Turn | Location | Event 6 | -11/Scrapyard | Discovered new exit (range 15) 109 | -11/Scrapyard | Entered Materials 149 | -10/Materials | Discovered new exit (range 10) 207 | -10/Materials | Entered Mines 228 | -10/Mines | Met a Derelict bent on vengeance 294 | -10/Mines | Learned location of 1 exit from Materials 301 | -10/Mines | Build established: Mutant 530 | -10/Mines | Discovered new exit (range 13) 688 | -10/Mines | Learned location of Storage (-7) 688 | -10/Mines | Discovered new exit (range 8) 959 | -10/Mines | Entered Materials 959 | -9/Materials | Evolved 2 slots: Propulsion x1, Utility x1 960 | -9/Materials | Identified exit to Materials 1339 | -9/Materials | Lost 4 parts (1p1n1u1w) 1511 | -9/Materials | Core integrity fell below 50% 1526 | -9/Materials | Lost 7 parts (3n2u2w) 1703 | -9/Materials | Discovered new exit (range 7) 1713 | -9/Materials | Entered Mines 1714 | -9/Mines | Assembled infested the area 1765 | -9/Mines | Core integrity fell below 20% 1766 | -9/Mines | Destroyed by D-53 Grenadier with Mini Grenade Launcher Last Messages --------------- 01741_ Searching scrap... 01741_ Found 26 Matter. 01741_ Found Beam Rifle. 01741_ Found 13 Matter. 01742_ Acquired 25 matter. 01754_ K-01 Serf collects debris. 01754_ K-01 Serf destroyed. 01754_ C-30 ARC bursts open, deploying its payload. 01754_ D-53 Grenadier unfolds itself. 01757_ Flight Unit destroyed. 01757_ K-01 Serf collects debris. 01759_ Flight Unit destroyed. 01760_ The unstable cave ceiling collapses. 01760_ Lgt. Ion Engine destroyed. 01760_ K-01 Serf collects debris. 01762_ The unstable cave ceiling collapses. 01763_ Flight Unit destroyed. 01763_ Hvy. Assault Rifle destroyed. 01764_ Lgt. Assault Rifle destroyed. 01765_ The unstable cave ceiling collapses. Map ----- +----------------------------------------------------+ | | | | | ?????????????????????????????????????????????????? | | ?????????????????????????????????????????????????? | | ???????#########?????????????????????????????????? | | ?????### ## ##????????????????????????????????? | | ????## #????????????????????????????????? | | ???## #????????????????????????????????? | | ???# ## ##????????????????????????????????? | | ???# #### ###?????????????????????????????????? | | ???## #??####???????????????????????????????????? | | ????# #?????????????????????????????????????????? | | ????# #?????????????????????????????????????????? | | ????# ##????????????????????????????????????????? | | ????# ####?????????????????????????????????????? | | ???## ##????????????????????????????????????? | | ???# ######???????????????????????????????? | | #### #???????????????????????????????? | | ### ##??????????????????????????????? | | ##?# #? ????###??????????????????????? | | ##??# #?? ??? ####???????????????????? | | ###???# #??? ?? #####???????????????? | | ##?????# #???# ? ##??????????????? | | ##?????# #??## ## ## ????????? | | #?????# #?## ????????????? | | #?????# #?# @ # #???????????????? | | ## #?????# #?# #??????????????????? | | ##### ####?# #?# ##??????????????????? | | ####### #?# ### ###### #????????????? | | ## d%=% #???????? | | """" ###### d## ####????????????? | | ##### """" #???## ##??????????????????? | | #????? """?? ??? # #???????????????????? | | #?????? ????? ?? ###???????????????????? | | #??????????????? #### ####?????????????????????? | | #?????????????? ???##?????????????????????????? | | #????????????? ???????????????????????????????? | | ##### #?????? ????????????????????????????????? | | #?????# ?????????????????????????????????? | | #### #?????###?????????????????????????????????? | | #??????????????????????????????????????????????? | | ##??????????????????????????????????????????????? | | ##???????????????????????????????????????????????? | | #????????????????????????????????????????????????? | | ?????????????????????????????????????????????????? | | ?????????????????????????????????????????????????? | | ?????????????????????????????????????????????????? | | ?????????????????????????????????????????????????? | | ?????????????????????????????????????????????????? | | ?????????????????????????????????????????????????? | +----------------------------------------------------+ Best States ------------- Heat Dissipation 48 Energy Generation 10 Energy Capacity 225 Matter Stores 300 Matter Capacity 300 Sight Range 16 Terrain Scan Density 10 ECM Strength 1 Armor Coverage 375 Evasion (%) 63 Item Schematics ----------------- Beam Rifle | -9/Materials | Scanalyzed Robot Schematics ------------------ None Fabricated ------------ Nothing Alien Tech Used ----------------- None Achievements -------------- None Challenges ------------ None Game ------ Seed SurveybotStasisJammer Manual? 0 Play Time 00:21:07 Cumulative 3.7 hours Start 2020.06.05 @ 00:20:43 End 2020.06.05 @ 00:41:40 Sessions 1 Manual Loads 0 Difficulty Rogue Special Mode None Game No. 15 Rogue 15 Adventurer 0 Explorer 0 Win Type - Total 0 Types 0/0/0/0/0/0/0 Lore% 6 Gallery% 7 Achievement% 8 Wizard Run 0 Options --------- ASCII 0 Keyboard 1 Movement Numpad Keybinds 0 Fullscreen 1 Font 18/SmallcapsGlow Map View 76x50 Tactical HUD 1 Map Filters NONE Filters NONE Steam 1 RUN: 065cb927-0ab5-4d9c-a326-d6c805fa5858